bitfinex-derivatives/quotes_SOLF0:USTF0_20260215
["timestamp","ask_amount","ask_price","bid_price","bid_amount"]
[1771162769034,2.8606991,87.4,87.35,3.82022983]
[1771162769239,0.73050332,87.421,87.35,3.82022983]
[1771162769434,0.73050332,87.419,87.35,3.82022983]
[1771162769639,0.73050332,87.417,87.35,3.82022983]
[1771162769840,10.3033,87.399,87.35,3.82022983]
[1771162770838,10.3021,87.409,87.351,3.82022983]
[1771162772248,0.74984993,87.447,87.362,3.82022983]
[1771162772444,0.74984993,87.445,87.362,3.82022983]
[1771162772745,0.74984993,87.445,87.33,91.2]
[1771162772746,2.86110669,87.444,87.373,3.82022983]
[1771162772937,2.86110669,87.443,87.373,3.82022983]
[1771162773137,3.63345388,87.442,87.373,3.82022983]
[1771162773438,2.86110669,87.441,87.373,3.82022983]
[1771162773741,2.86110669,87.44,87.375,3.82022983]
[1771162773941,0.77234719,87.442,87.375,3.82022983]
[1771162773942,2.86110669,87.439,87.375,3.82022983]
[1771162774144,2.86110669,87.438,87.375,3.82022983]
[1771162774443,2.86110669,87.437,87.375,3.82022983]
[1771162774637,2.86110669,87.436,87.375,3.82022983]
[1771162774843,2.86110669,87.435,87.375,3.82022983]
[1771162775041,2.86110669,87.434,87.383,10.305]
[1771162775236,2.86110669,87.433,87.384,3.82022983]
[1771162775444,2.86110669,87.432,87.384,3.82022983]
[1771162775640,2.86110669,87.431,87.384,3.82022983]
[1771162775841,2.86110669,87.43,87.384,3.82022983]
[1771162776042,2.86110669,87.429,87.384,3.82022983]
[1771162776242,2.86110669,87.428,87.384,3.82022983]
[1771162776444,2.86110669,87.427,87.384,3.82022983]
[1771162776643,2.86110669,87.426,87.384,3.82022983]
[1771162776840,2.86110669,87.425,87.384,3.82022983]
[1771162777040,2.86110669,87.44,87.386,3.82022983]
[1771162777238,2.86110669,87.439,87.386,3.82022983]
[1771162777444,2.86110669,87.438,87.386,3.82022983]
[1771162777647,2.86110669,87.437,87.39,3.82022983]
[1771162777847,2.86110669,87.436,87.39,3.82022983]
[1771162778143,0.6839838,87.434,87.39,3.82022983]
[1771162778348,0.6839838,87.432,87.375,10.306]
[1771162778550,2.86110669,87.431,87.376,3.82022983]
[1771162778746,2.86110669,87.43,87.376,3.82022983]
[1771162779043,2.86110669,87.429,87.379,3.82022983]
[1771162779246,2.86110669,87.428,87.379,3.82022983]
[1771162779548,2.86110669,87.427,87.379,3.82022983]
[1771162779749,2.86110669,87.426,87.379,3.82022983]
[1771162779944,2.86110669,87.425,87.382,3.82022983]
[1771162780146,2.86110669,87.424,87.382,3.82022983]
[1771162780346,2.86110669,87.423,87.382,3.82022983]
[1771162780548,0.71089355,87.453,87.382,3.82022983]
[1771162780549,2.86110669,87.45,87.382,3.82022983]
[1771162780748,2.86110669,87.449,87.382,3.82022983]
[1771162780945,2.86110669,87.448,87.382,3.82022983]
[1771162781145,2.86110669,87.447,87.382,3.82022983]
[1771162781345,2.86110669,87.446,87.382,3.82022983]
[1771162781647,2.86110669,87.445,87.384,3.82022983]
[1771162781849,2.86110669,87.444,87.384,3.82022983]
[1771162782150,2.86110669,87.443,87.384,3.82022983]
[1771162782352,2.86110669,87.442,87.384,3.82022983]
[1771162782653,2.86110669,87.441,87.384,3.82022983]
[1771162782950,2.86110669,87.44,87.384,3.82022983]
[1771162783150,2.86110669,87.439,87.384,3.82022983]
[1771162783353,2.86110669,87.438,87.384,3.82022983]
[1771162783650,2.86110669,87.437,87.384,3.82022983]
[1771162783853,2.86110669,87.436,87.384,3.82022983]
[1771162784046,2.86110669,87.435,87.384,3.82022983]
[1771162784253,2.86110669,87.434,87.384,3.82022983]
[1771162784451,2.86110669,87.433,87.384,3.82022983]
[1771162784654,3.59940984,87.432,87.384,3.82022983]
[1771162784849,0.73856637,87.43,87.384,3.82022983]
[1771162785051,0.73856637,87.428,87.366,3.86340812]
[1771162785252,0.73856637,87.426,87.366,3.86340812]
[1771162785453,0.73856637,87.422,87.366,3.86340812]
[1771162785654,0.73856637,87.42,87.366,3.86340812]
[1771162785853,10.3005,87.423,87.366,3.86340812]
[1771162785854,0.73856637,87.418,87.366,3.86340812]
[1771162786056,0.73856637,87.416,87.366,3.86340812]
[1771162786354,2.86084347,87.415,87.366,3.86340812]
[1771162786554,2.86084347,87.414,87.366,3.86340812]
[1771162786855,2.86084347,87.413,87.366,3.86340812]
[1771162787056,2.86084347,87.412,87.366,3.86340812]
[1771162787256,2.86084347,87.411,87.366,3.86340812]
[1771162787456,2.86084347,87.41,87.369,3.86340812]
[1771162787657,10.46300342,87.436,87.369,3.86340812]
[1771162787851,10.46300342,87.444,87.369,3.86340812]
[1771162788056,14.06261232,87.444,87.369,3.86340812]
[1771162788457,14.06261232,87.444,87.389,3.86340812]
[1771162788856,3.5996089,87.444,87.389,3.86340812]
[1771162789858,3.5996089,87.444,87.391,3.86340812]
[1771162790162,10.46300342,87.452,87.391,3.86340812]
[1771162790660,10.46300342,87.452,87.393,3.86340812]
[1771162791260,10.46300342,87.452,87.397,3.86340812]
[1771162791456,10.46300342,87.457,87.397,3.86340812]
[1771162792753,10.2953,87.466,87.403,3.86340812]
[1771162792954,3.33967922,87.475,87.403,3.86340812]
[1771162793770,13.63407922,87.475,87.413,3.86340812]
[1771162794864,13.63407922,87.475,87.417,3.86340812]
[1771162796363,10.2952,87.468,87.417,3.86340812]
[1771162797565,3.29672896,87.474,87.417,3.86340812]
[1771162797766,3.29672896,87.474,87.42,3.86340812]
[1771162798564,3.29672896,87.474,87.421,10.3005]
[1771162798866,3.29672896,87.474,87.422,3.86340812]
[1771162799666,2.8597927,87.473,87.422,3.86340812]
[1771162799862,2.8597927,87.472,87.426,3.86340812]
[1771162800061,3.3050441,87.47,87.426,3.86340812]
[1771162800261,3.3050441,87.468,87.426,3.86340812]
[1771162800562,2.8597927,87.467,87.426,3.86340812]
[1771162800762,3.29689646,87.465,87.4,3.86340812]
[1771162800963,3.29689646,87.463,87.4,3.86340812]
[1771162801264,3.29689646,87.457,87.385,3.86340812]
[1771162801569,3.29689646,87.455,87.385,3.86340812]
[1771162801763,3.29689646,87.453,87.385,3.86340812]
[1771162802068,3.29689646,87.451,87.385,3.86340812]
[1771162802270,3.29689646,87.449,87.385,3.86340812]
[1771162802464,3.29689646,87.447,87.385,3.86340812]
[1771162802661,3.4002135,87.445,87.385,3.86340812]
[1771162802864,3.4002135,87.443,87.385,3.86340812]
[1771162803065,2.8597927,87.442,87.385,3.86340812]
[1771162803268,2.8597927,87.441,87.385,3.86340812]
[1771162803469,2.8597927,87.44,87.386,3.86340812]
[1771162803671,2.8597927,87.439,87.386,3.86340812]
[1771162803975,2.8597927,87.438,87.386,3.86340812]
[1771162804165,2.8597927,87.437,87.386,3.86340812]
[1771162804365,2.8597927,87.436,87.386,3.86340812]
[1771162804566,2.8597927,87.435,87.386,3.86340812]
[1771162804761,2.8597927,87.434,87.391,14.16750812]
[1771162804962,2.8597927,87.433,87.391,14.16750812]
[1771162805172,2.8597927,87.432,87.391,14.16750812]
[1771162805470,2.8597927,87.431,87.391,14.16750812]
[1771162805670,2.8597927,87.43,87.391,14.16750812]
[1771162805864,2.8597927,87.429,87.391,14.16750812]
[1771162806165,2.8597927,87.428,87.391,14.16750812]
[1771162806370,2.8597927,87.427,87.391,14.16750812]
[1771162806566,2.8597927,87.426,87.391,14.16750812]
[1771162806764,2.8597927,87.442,87.391,14.16750812]
[1771162806964,3.40383501,87.44,87.391,14.16750812]
[1771162807165,2.8597927,87.439,87.398,10.3032]
[1771162807365,2.8597927,87.438,87.398,10.3032]
[1771162807565,9.27e-05,87.437,87.399,3.86340812]
[1771162807873,3.40383501,87.472,87.421,10.3006]
[1771162810373,3.40383501,87.472,87.418,3.86340812]
[1771162811576,3.38073022,87.47,87.418,3.86340812]
[1771162811872,3.38073022,87.47,87.405,3.86340812]
[1771162812472,3.38073022,87.47,87.41,3.86340812]
[1771162813780,3.45001294,87.467,87.411,10.3017]
[1771162814482,3.45001294,87.464,87.41,3.86340812]
[1771162815578,3.45200382,87.461,87.395,3.86373474]
[1771162816478,3.45200382,87.459,87.397,14.16713474]
[1771162816679,3.45200382,87.459,87.398,3.86373474]
[1771162817278,10.2964,87.457,87.398,3.86373474]
[1771162817480,3.47816084,87.456,87.398,3.86373474]
[1771162818778,10.297,87.452,87.398,3.86373474]
[1771162819588,10.2973,87.449,87.398,3.86373474]
[1771162819776,2.86051787,87.448,87.398,3.86373474]
[1771162819977,2.86051787,87.447,87.398,3.86373474]
[1771162820177,2.86051787,87.446,87.398,3.86373474]
[1771162820382,10.298,87.444,87.398,3.86373474]
[1771162820685,3.49377366,87.442,87.383,3.86373474]
[1771162820874,2.86051787,87.441,87.383,3.86373474]
[1771162821079,2.86051787,87.44,87.383,3.86373474]
[1771162821278,2.86051787,87.439,87.383,3.86373474]
[1771162821483,2.86051787,87.438,87.383,3.86373474]
[1771162821685,2.86051787,87.437,87.383,3.86373474]
[1771162821890,2.86051787,87.436,87.383,3.86373474]
[1771162822088,2.86051787,87.435,87.383,3.86373474]
[1771162822382,2.86051787,87.434,87.383,3.86373474]
[1771162822688,3.5219141,87.464,87.383,3.86373474]
[1771162823281,10.2961,87.46,87.411,3.86373474]
[1771162824083,3.5219141,87.464,87.413,3.86373474]
[1771162824281,3.68963782,87.465,87.413,3.86373474]
[1771162825986,3.68963782,87.465,87.375,3.86373474]
[1771162826189,3.68963782,87.45,87.389,3.86373474]
[1771162827489,3.68963782,87.45,87.392,3.86373474]
[1771162829791,3.68963782,87.449,87.392,3.86373474]
[1771162830090,3.68963782,87.448,87.392,3.86373474]
[1771162830389,3.68963782,87.443,87.392,3.86373474]
[1771162831188,3.68963782,87.442,87.392,3.86373474]
[1771162831890,3.68963782,87.442,87.393,10.3038]
[1771162832085,3.68963782,87.442,87.393,14.16753474]
[1771162832385,3.68963782,87.442,87.394,3.86373474]
[1771162833491,3.68963782,87.442,87.353,20.6172]
[1771162833492,10.61138535,87.452,87.399,3.86373474]
[1771162833890,3.68963782,87.449,87.388,10.3045]
[1771162834186,3.68963782,87.434,87.37,3.86373474]
[1771162834386,3.68963782,87.433,87.37,3.86373474]
[1771162834592,2.86135465,87.432,87.37,3.86373474]
[1771162834791,3.68963782,87.43,87.37,3.86373474]
[1771162834985,3.68963782,87.428,87.37,3.86373474]
[1771162835185,34.29,87.443,87.37,3.86373474]
[1771162835186,3.68963782,87.426,87.37,3.86373474]
[1771162835383,2.86135465,87.425,87.37,3.86373474]
[1771162835589,2.86135465,87.424,87.37,3.86373474]
[1771162835793,2.86135465,87.423,87.37,3.86373474]
[1771162836095,2.86135465,87.422,87.37,3.86373474]
[1771162836294,2.86135465,87.421,87.37,3.86373474]
[1771162836593,2.86135465,87.42,87.37,3.86373474]
[1771162836794,2.86135465,87.419,87.37,3.86373474]
[1771162836996,2.86135465,87.418,87.37,3.86373474]
[1771162837194,2.86135465,87.417,87.37,3.86373474]
[1771162837495,2.86135465,87.416,87.37,3.86373474]
[1771162837697,2.86135465,87.415,87.37,3.86373474]
[1771162837897,2.86135465,87.414,87.37,3.86373474]
[1771162838096,2.86135465,87.413,87.37,3.86373474]
[1771162838300,2.86135465,87.412,87.37,3.86373474]
[1771162838487,2.86135465,87.411,87.37,3.86373474]
[1771162838687,2.86135465,87.41,87.372,10.3063]
[1771162838892,2.86135465,87.409,87.373,3.86373474]
[1771162839192,2.86135465,87.408,87.373,3.86373474]
[1771162839394,3.68963782,87.426,87.373,3.86373474]
[1771162839596,2.86135556,87.425,87.373,3.86373474]
[1771162839904,2.86135556,87.424,87.373,3.86373474]
[1771162840098,2.86135556,87.423,87.373,3.86373474]
[1771162840298,2.86135556,87.422,87.373,3.86373474]
[1771162840498,2.86135556,87.421,87.373,3.86373474]
[1771162840700,2.86135556,87.42,87.373,3.86373474]
[1771162840895,2.86135556,87.419,87.373,3.86373474]
[1771162841196,13.98813782,87.44,87.373,3.86373474]
[1771162841402,2.8610663,87.439,87.378,3.86373474]
[1771162841598,13.1596663,87.438,87.378,3.86373474]
[1771162841805,2.8610663,87.437,87.378,3.86373474]
[1771162841997,2.8610663,87.436,87.378,3.86373474]
[1771162842194,2.8610663,87.435,87.378,3.86373474]
[1771162842403,2.8610663,87.434,87.378,3.86373474]
[1771162842598,2.8610663,87.433,87.378,3.86373474]
[1771162842805,2.8610663,87.432,87.38,3.86373474]
[1771162842999,2.8610663,87.431,87.38,3.86373474]
[1771162843206,2.8610663,87.43,87.38,3.86373474]
[1771162843404,3.69501119,87.454,87.38,3.86373474]
[1771162843610,10.59929656,87.459,87.389,3.65648806]
[1771162843611,3.68143406,87.452,87.389,3.65648806]
[1771162843898,6.54195958,87.451,87.389,3.65648806]
[1771162844104,2.86052552,87.45,87.389,3.65648806]
[1771162844308,2.86052552,87.449,87.389,3.65648806]
[1771162844605,2.86052552,87.448,87.389,3.65648806]
[1771162844804,6.54195958,87.447,87.392,3.65648806]
[1771162845112,2.86052552,87.446,87.392,3.65648806]
[1771162845404,2.86052552,87.445,87.392,3.65648806]
[1771162845607,2.86052552,87.444,87.392,3.65648806]
[1771162845798,2.86052552,87.443,87.392,3.65648806]
[1771162846005,2.86052552,87.442,87.392,3.65648806]
[1771162846206,2.86052552,87.441,87.392,3.65648806]
[1771162846405,2.86052552,87.44,87.392,3.65648806]
[1771162846609,2.86052552,87.439,87.392,3.65648806]
[1771162846801,2.86052552,87.438,87.403,10.3027]
[1771162847001,2.86052552,87.437,87.403,10.3027]
[1771162847196,2.86052552,87.436,87.404,3.65648806]
[1771162847401,2.86034334,87.435,87.408,3.65648806]
[1771162847602,3.68143406,87.461,87.408,3.65648806]
[1771162847908,3.68143406,87.459,87.372,3.65648806]
[1771162848206,3.68143406,87.451,87.372,3.65648806]
[1771162848401,3.68143406,87.449,87.372,3.65648806]
[1771162848597,3.68143406,87.449,87.343,21.27627705]
[1771162848598,10.59929656,87.444,87.384,3.65648806]
[1771162848803,3.68143406,87.437,87.384,3.65648806]
[1771162849108,2.86023394,87.436,87.384,3.65648806]
[1771162849308,2.86023394,87.435,87.388,3.65648806]
[1771162849605,3.68143406,87.437,87.388,3.65648806]
[1771162849606,2.86023394,87.434,87.388,3.65648806]
[1771162849802,2.86023394,87.433,87.388,3.65648806]
[1771162850002,2.86023394,87.432,87.388,3.65648806]
[1771162850220,2.86023394,87.431,87.388,3.65648806]
[1771162850505,2.86023394,87.43,87.388,3.65648806]
[1771162850708,2.86023394,87.429,87.392,10.304]
[1771162850899,2.86023394,87.428,87.392,10.304]
[1771162851101,3.68143406,87.437,87.402,10.3027]
[1771162851102,2.86023394,87.427,87.402,10.3027]
[1771162851310,2.86023394,87.426,87.402,10.3027]
[1771162851509,3.394e-05,87.425,87.402,10.3027]
[1771162851808,3.68143406,87.437,87.402,10.3027]
[1771162853506,3.406e-05,87.437,87.409,10.3019]
[1771162853813,450.67687022,87.462,87.409,10.3019]
[1771162854209,450.67687022,87.462,87.38,3.65648806]
[1771162854415,10.59929656,87.452,87.38,3.65648806]
[1771162855210,10.59929656,87.451,87.38,3.65648806]
[1771162855411,10.59929656,87.45,87.4,10.3031]
[1771162855612,13.70725373,87.453,87.395,3.65648806]
[1771162855811,3.10795717,87.452,87.395,3.65648806]
[1771162856212,3.10795717,87.451,87.395,3.65648806]
[1771162856608,3.10795717,87.45,87.395,3.65648806]
[1771162857310,3.13371845,87.449,87.395,3.65648806]
[1771162858109,3.13371845,87.449,87.405,10.3024]
[1771162859305,3.12911693,87.445,87.405,10.3024]
[1771162860006,3.12911693,87.445,87.395,3.65648806]
[1771162860007,3.12911693,87.445,87.396,10.3035]
[1771162860409,3.12911693,87.444,87.396,10.3035]
[1771162860806,3.12911693,87.444,87.398,3.65648806]
[1771162861112,10.59929656,87.454,87.398,3.65648806]
[1771162861312,221.14,87.455,87.398,3.65648806]
[1771162861514,13.71861704,87.472,87.398,3.65648806]
[1771162861709,422.36767366,87.462,87.423,3.65648806]
[1771162862207,387.37887366,87.462,87.423,3.65648806]
[1771162862404,10.59929656,87.487,87.436,3.65648806]
[1771162862609,3.06706501,87.493,87.436,3.65648806]
[1771162862814,3.06706501,87.493,87.443,10.298]
[1771162863013,3.06706501,87.493,87.436,3.65648806]
[1771162863214,3.06706501,87.49,87.436,3.65648806]
[1771162863513,3.06706501,87.488,87.436,3.65648806]
[1771162865609,3.04313178,87.487,87.418,10.3009]
[1771162865808,3.04313178,87.487,87.419,3.65648806]
[1771162866413,239.24079969,87.494,87.447,3.65648806]
[1771162866713,225.4,87.495,87.447,3.65648806]
[1771162866910,20.75248242,87.537,87.447,3.65648806]
[1771162866911,5.13e-06,87.526,87.447,3.65648806]
[1771162867107,3.06113629,87.546,87.471,3.65648806]
[1771162867310,3.06113629,87.546,87.425,3.65648806]
[1771162867618,3.06113629,87.535,87.454,3.65648806]
[1771162868009,3.06113629,87.532,87.454,3.65648806]
[1771162868213,3.06113629,87.527,87.454,3.65648806]
[1771162868710,3.64629869,87.525,87.454,3.65648806]
[1771162870507,3.64629869,87.525,87.41,91.22]
[1771162870508,3.64629869,87.525,87.457,3.65648806]
[1771162870705,3.68143406,87.549,87.457,3.65648806]
[1771162870906,3.68143406,87.565,87.492,3.65648806]
[1771162871814,3.68143406,87.565,87.511,10.2899]
[1771162872316,3.68143406,87.578,87.521,3.65648806]
[1771162873010,3.68143406,87.597,87.525,3.65648806]
[1771162873608,3.68143406,87.597,87.485,160.1145]
[1771162873609,10.2791,87.605,87.541,3.57617189]
[1771162873807,3.58333243,87.614,87.541,3.57617189]
[1771162874005,395.74273895,87.622,87.541,3.57617189]
[1771162874216,395.74273895,87.622,87.566,3.57617189]
[1771162875311,3.58333243,87.621,87.566,3.57617189]
[1771162875517,3.58333243,87.62,87.566,3.57617189]
[1771162875813,3.58333243,87.62,87.548,3.57617189]
[1771162878305,3.58333243,87.62,87.555,3.57617189]
[1771162879320,3.58333243,87.62,87.453,175.0]
[1771162879321,10.281,87.588,87.507,10.2904]
[1771162879517,3.58333243,87.587,87.508,3.57617189]
[1771162880122,3.58333243,87.587,87.525,3.57617189]
[1771162880621,3.58333243,87.604,87.525,3.57617189]
[1771162881820,3.58333243,87.604,87.54,3.57617189]
[1771162882217,3.50858709,87.586,87.515,10.2895]
[1771162882521,3.50858709,87.584,87.516,3.57617189]
[1771162882721,3.48902613,87.582,87.516,3.57617189]
[1771162883719,3.48902613,87.576,87.516,3.57617189]
[1771162885714,3.48902613,87.576,87.452,34.29]
[1771162885715,3.48902613,87.576,87.494,3.57617189]
[1771162885922,3.47403086,87.574,87.494,3.57617189]
[1771162886719,3.47479012,87.571,87.498,3.57617189]
[1771162887023,3.47479012,87.569,87.498,3.57617189]
[1771162887218,10.285,87.555,87.439,194.01391965]
[1771162887425,3.47479012,87.554,87.479,3.57617189]
[1771162888423,3.47479012,87.554,87.482,3.57617189]
[1771162888627,207.4,87.57,87.482,3.57617189]
[1771162888925,3.41548522,87.569,87.482,3.57617189]
[1771162889629,3.41548522,87.569,87.497,3.57617189]
[1771162890727,3.41548522,87.569,87.5,3.57617189]
[1771162891326,3.41548522,87.569,87.504,10.2908]
[1771162891525,10.2813,87.586,87.461,20.5919]
[1771162891718,3.44031032,87.584,87.505,3.57617189]
[1771162891923,3.44031032,87.584,87.515,3.57617189]
[1771162892617,3.44031032,87.584,87.521,3.57617189]
[1771162893926,3.44031032,87.584,87.526,3.57617189]
[1771162894929,10.2818,87.581,87.526,3.57617189]
[1771162895322,3.44031032,87.584,87.528,3.57617189]
[1771162895924,10.2802,87.595,87.528,3.57617189]
[1771162896526,3.45127818,87.599,87.54,3.57617189]
[1771162897030,3.45127818,87.599,87.543,3.57617189]
[1771162897928,10.2777,87.616,87.554,3.57617189]
[1771162898130,13.73057552,87.616,87.554,3.57617189]
[1771162898331,3.45287552,87.615,87.554,3.57617189]
[1771162898530,3.45287552,87.615,87.556,3.57617189]
[1771162900328,3.45471453,87.631,87.568,3.57617189]
[1771162901631,10.2734,87.653,87.579,3.57617189]
[1771162901822,3.5219143,87.656,87.579,3.57617189]
[1771162902429,13.7952143,87.654,87.585,3.57617189]
[1771162902628,3.5219143,87.653,87.585,3.57617189]
[1771162903232,10.2737,87.65,87.587,3.90688443]
[1771162903925,10.2737,87.651,87.597,3.90688443]
[1771162904132,13.80084684,87.651,87.597,3.90688443]
[1771162904333,3.52714684,87.651,87.542,3.90688443]
[1771162904534,3.52714684,87.651,87.541,20.5729]
[1771162904535,10.2755,87.635,87.578,3.90688443]
[1771162905637,3.52714684,87.651,87.578,3.90688443]
[1771162907246,3.52714684,87.651,87.581,3.90688443]
[1771162907842,3.57211797,87.647,87.581,3.90688443]
[1771162908642,3.57211797,87.643,87.581,3.90688443]
[1771162910043,3.56287716,87.641,87.566,3.90688443]
[1771162910237,3.56287716,87.638,87.566,3.90688443]
[1771162910450,3.56287716,87.636,87.566,3.90688443]
[1771162911745,3.56075949,87.629,87.566,3.90688443]
[1771162912148,3.56075949,87.629,87.55,3.90688443]
[1771162912345,3.56075949,87.6,87.528,3.90688443]
[1771162913749,3.56075949,87.6,87.531,3.90688443]
[1771162914849,3.53289608,87.609,87.533,3.90688443]
[1771162915760,10.2789,87.607,87.542,3.90688443]
[1771162916145,3.53289608,87.606,87.542,3.90688443]
[1771162917760,10.2797,87.599,87.542,3.90688443]
[1771162918253,3.53289608,87.606,87.542,3.90688443]
[1771162918850,3.47796017,87.618,87.542,3.90688443]
[1771162919856,3.47796017,87.599,87.542,3.90688443]
[1771162921253,3.44622179,87.593,87.542,3.90688443]
[1771162922058,3.44622179,87.591,87.542,3.90688443]
[1771162923660,10.2808,87.59,87.542,3.90688443]
[1771162928661,2.85619454,87.589,87.542,3.90688443]
[1771162928865,2.85619454,87.588,87.542,3.90688443]
[1771162929061,2.85619454,87.587,87.542,3.90688443]
[1771162929265,2.85619454,87.586,87.542,3.90688443]
[1771162929560,2.85619454,87.585,87.542,3.90688443]
[1771162929765,2.85619454,87.589,87.542,3.90688443]
[1771162929967,2.85619454,87.588,87.542,3.90688443]
[1771162930164,2.85619454,87.587,87.542,3.90688443]
[1771162930363,2.85619454,87.586,87.542,3.90688443]
[1771162930558,2.85619454,87.585,87.542,3.90688443]
[1771162930763,2.85619454,87.589,87.542,3.90688443]
[1771162930961,2.85619454,87.588,87.542,3.90688443]
[1771162931163,2.85619454,87.587,87.542,3.90688443]
[1771162931360,9.454e-05,87.586,87.545,3.90688443]
[1771162931571,2.85600856,87.626,87.545,3.90688443]
[1771162931868,3.51480197,87.63,87.545,3.90688443]
[1771162932069,3.51480197,87.619,87.558,10.2844]
[1771162932271,3.51480197,87.619,87.558,14.19128443]
[1771162932470,10.59026233,87.638,87.558,3.90688443]
[1771162932471,3.51480197,87.617,87.558,3.90688443]
[1771162933673,3.78708603,87.609,87.558,3.90688443]
[1771162933873,3.78708603,87.624,87.558,3.90688443]
[1771162934870,3.78708603,87.624,87.56,3.60927431]
[1771162935372,3.78708603,87.622,87.56,3.60927431]
[1771162936769,3.78708603,87.622,87.533,3.60927431]
[1771162937577,3.78708603,87.608,87.543,3.60927431]
[1771162938767,3.78708603,87.602,87.543,3.60927431]
[1771162940780,3.78708603,87.591,87.543,3.60927431]
[1771162941872,3.78708603,87.589,87.543,3.60927431]
[1771162942473,10.2808,87.59,87.523,10.2886]
[1771162942868,10.59026233,87.593,87.486,14.15384395]
[1771162943068,44.88026233,87.583,87.476,14.15384395]
[1771162943274,10.59026233,87.576,87.466,14.15384395]
[1771162943580,10.59026233,87.575,87.465,14.15384395]
[1771162943778,10.59026233,87.575,87.464,14.15384395]
[1771162944381,10.59026233,87.576,87.463,14.15384395]
[1771162944676,34.29,87.572,87.46,14.15384395]
[1771162944871,34.29,87.567,87.439,173.41691965]
[1771162945070,34.29,87.552,87.439,173.41691965]
[1771162945275,34.29,87.55,87.439,173.41691965]
[1771162945472,34.29,87.548,87.439,173.41691965]
[1771162945678,10.2896,87.515,87.439,173.41691965]
[1771162945976,44.88026233,87.544,87.439,173.41691965]
[1771162946176,34.29,87.544,87.439,173.41691965]
[1771162946480,91.14,87.549,87.439,173.41691965]
[1771162946481,34.29,87.548,87.439,173.41691965]
[1771162946779,91.14,87.549,87.439,173.41691965]
[1771162947177,10.2886,87.524,87.44,10.2983]
[1771162950083,10.2872,87.536,87.452,10.2969]
[1771162950281,91.16,87.546,87.439,173.41691965]
[1771162950688,10.2894,87.517,87.441,10.2983]
[1771162952286,10.2908,87.505,87.439,173.41691965]
[1771162953086,34.29,87.555,87.439,173.41691965]
[1771162953281,91.18,87.534,87.439,173.41691965]
[1771162953888,10.2896,87.515,87.44,10.2983]
[1771162954187,10.2896,87.515,87.439,173.41691965]
[1771162954583,3.49818876,87.514,87.44,3.60927431]
[1771162955587,3.48410841,87.495,87.44,3.60927431]
[1771162956785,3.38570358,87.49,87.44,3.60927431]
[1771162962493,3.38570358,87.49,87.442,10.298]
[1771162962693,3.38570358,87.49,87.442,13.90727431]
[1771162963082,3.38570358,87.49,87.443,3.74821975]
[1771162964894,3.43119184,87.505,87.448,3.89854512]
[1771162965892,3.43119184,87.505,87.45,3.89854512]
[1771162967393,3.43119184,87.505,87.453,3.89854512]
[1771162968394,3.43119184,87.505,87.443,10.2979]
[1771162969493,3.43119184,87.505,87.45,10.2971]
[1771162972994,3.43119184,87.505,87.458,10.2963]
[1771162974593,3.43119184,87.505,87.458,14.19484512]
[1771162974793,3.43119184,87.505,87.462,3.89854512]
[1771162978497,10.49986557,87.549,87.392,91.22]
[1771162978498,3.24323428,87.526,87.463,3.89854512]
[1771162981200,3.26533136,87.539,87.465,3.89854512]
[1771162981591,3.26533136,87.569,87.465,3.89854512]
[1771162981796,10.2856,87.55,87.479,3.89854512]
[1771162981995,3.26533136,87.554,87.479,3.89854512]
[1771162982395,3.26533136,87.554,87.49,3.89854512]
[1771162983902,3.28472859,87.551,87.49,3.89854512]
[1771162984305,3.28472859,87.573,87.49,3.89854512]
[1771162985198,3.28472859,87.573,87.51,3.89854512]
[1771162986602,3.2973611,87.567,87.51,3.89854512]
[1771162986807,3.2973611,87.567,87.451,3.89854512]
[1771162987713,34.29,87.585,87.445,91.2]
[1771162987714,3.24535538,87.562,87.486,3.89854512]
[1771162988110,3.24535538,87.584,87.486,3.89854512]
[1771162989812,3.24535538,87.584,87.462,34.29]
[1771162989813,3.21412567,87.581,87.517,3.89854512]
[1771162990516,3.21412567,87.581,87.519,3.89854512]
[1771162991617,3.21878836,87.579,87.519,3.89854512]
[1771162992622,3.21878836,87.579,87.524,3.89854512]
[1771162993319,3.21878836,87.579,87.527,3.9101138]
[1771162993514,3.21249584,87.6,87.527,3.9101138]
[1771162994315,3.21204604,87.593,87.472,3.9101138]
[1771162994822,91.18,87.609,87.497,3.9101138]
[1771162994823,3.20944935,87.56,87.497,3.9101138]
[1771162995321,3.20944935,87.56,87.499,14.2015138]
[1771162995521,3.20944935,87.56,87.499,3.9101138]
[1771162999921,3.2393351,87.557,87.499,3.9101138]
[1771163000926,3.24568195,87.554,87.499,3.9101138]
[1771163002923,3.24616561,87.552,87.499,3.9101138]
[1771163003331,3.24616561,87.538,87.474,3.9101138]
[1771163004623,3.24616561,87.536,87.476,3.9101138]
[1771163004820,3.24616561,87.536,87.448,3.9101138]
[1771163005724,3.32562639,87.494,87.448,3.9101138]
[1771163005923,3.32562639,87.494,87.394,3.9101138]
[1771163006330,3.32562639,87.479,87.419,3.9101138]
[1771163007327,10.2943,87.475,87.419,3.9101138]
[1771163007522,3.32562639,87.479,87.419,3.9101138]
[1771163008023,3.40589172,87.467,87.419,3.9101138]